[Event "FIDE Womens Grand Swiss 2021"]
[Site "Riga"]
[Date "2021.11.03"]
[Round "7.11"]
[White "Shuvalova, Polina"]
[Black "Garifullina, Leya"]
[Result "1-0"]
[ECO "B93"]
[WhiteElo "2509"]
[BlackElo "2409"]
[Annotator "RC"]
[PlyCount "95"]
[EventDate "2021.10.27"]
[EventType "swiss"]
[EventCountry "LAT"]
[Tiebreak "Cut1 Buchholz+Sonneborn-Berger (Swiss)"]
[SourceTitle "playchess.com"]
[Source "ChessBase"]
[SourceQuality "1"]
[TimeControl "40/6000+30:20/3000+30:900+30"]

1. e4 {[%emt 0:10:06]} c5 {[%emt 0:10:09]} 2. Nf3 {[%emt 0:00:05]} d6 {[%emt 0:
00:05]} 3. d4 {[%emt 0:00:04]} cxd4 {[%emt 0:00:07]} 4. Nxd4 {[%emt 0:00:06]}
Nf6 {[%emt 0:00:07]} 5. Nc3 {[%emt 0:00:02]} a6 {[%emt 0:00:07]} 6. f4 {
[%emt 0:00:09]} e5 {[%emt 0:00:21]} 7. Nb3 {[%emt 0:00:07]} Be7 {[%emt 0:02:05]
} 8. fxe5 {[%emt 0:00:59]} dxe5 {[%emt 0:02:25]} 9. Qxd8+ {[%emt 0:00:04]} Bxd8
{[%emt 0:00:58]} 10. Be3 {[%emt 0:00:24]} Nc6 {[%emt 0:02:09]} 11. O-O-O {
[%emt 0:03:08]} Bg4 {[%emt 0:03:19]} 12. Rd2 {[%emt 0:02:12]} Be6 {[%emt 0:01:
59]} 13. h3 {[%emt 0:03:04]} Bxb3 {[%emt 0:04:51]} 14. axb3 {[%emt 0:06:10]}
Ba5 {[%emt 0:00:54]} 15. Bd3 {[%emt 0:03:59]} O-O {[%emt 0:02:35]} 16. g4 {
[%emt 0:06:37]} Rac8 {[%emt 0:03:34]} 17. g5 {[%emt 0:14:53]} Nh5 {[%emt 0:00:
41]} 18. Rf2 {[%emt 0:01:24]} Nb4 {[%emt 0:16:38]} 19. Be2 {[%emt 0:01:42]} Ng3
{[%emt 0:02:31]} 20. Rg1 {[%emt 0:00:11]} Nxe2+ {[%emt 0:02:41]} 21. Rxe2 {
[%emt 0:00:07]} f5 {[%emt 0:05:32]} 22. gxf6 {[%emt 0:14:10]} Rxf6 {[%emt 0:01:
26]} 23. Nd5 {[%emt 0:00:11]} Nxd5 {[%emt 0:00:28]} 24. exd5 {[%emt 0:00:03]}
b5 {[%emt 0:05:24]} 25. c3 {[%emt 0:02:37]} Bd8 {[%emt 0:13:13]} 26. Kc2 {
[%emt 0:09:48]} Rd6 {[%emt 0:02:38]} 27. Rd2 {[%emt 0:03:46]} a5 {[%emt 0:07:
45]} 28. Rg4 {[%emt 0:00:38]} h5 {[%emt 0:00:47]} 29. Re4 {[%emt 0:00:30]} Bf6
{[%emt 0:00:55]} 30. c4 {[%emt 0:03:47]} Rd7 {[%emt 0:03:00]} 31. Kd1 {[%emt 0:
02:35]} Be7 {[%emt 0:02:59]} 32. cxb5 {[%emt 0:01:29]} Rb8 {[%emt 0:00:59]} 33.
b6 {[%emt 0:04:02]} Bd8 {[%emt 0:00:55]} 34. b4 {[%emt 0:01:58]} a4 {[%emt 0:
01:44]} 35. Rxe5 {[%emt 0:00:29]} Bxb6 {[%emt 0:00:04]} 36. Bc5 {[%emt 0:00:17]
} h4 {[%emt 0:03:48]} 37. d6 {[%emt 0:02:06]} Bd8 {[%emt 0:00:09]} 38. Re8+ {
[%emt 0:01:46]} Kf7 {[%emt 0:00:05]} 39. Rde2 {[%emt 0:04:05]} Rb6 {[%emt 0:04:
13]} 40. Bxb6 {[%emt 0:02:31]} Rxd6+ {[%emt 0:00:07]} 41. Kc2 {[%emt 0:50:14]}
Bxb6 {[%emt 0:50:16]} 42. R8e4 {[%emt 0:02:22]} Rc6+ {[%emt 0:03:55]} 43. Kd3 {
[%emt 0:00:57]} g5 {[%emt 0:01:31]} 44. b5 {[%emt 0:00:24]} Rd6+ {[%emt 0:01:
09]} 45. Kc2 {[%emt 0:01:49]} Kf6 {[%emt 0:01:01]} 46. Rd2 {[%emt 0:01:08]} Re6
{[%emt 0:00:00]} 47. Rxe6+ {[%emt 0:00:00]} Kxe6 {[%emt 0:00:00]} 48. Rg2 {
[%emt 0:00:00]} 1-0

[Event "FIDE Womens Grand Swiss 2021"]
[Site "Riga"]
[Date "2021.11.03"]
[Round "7.18"]
[White "Atalik, Ekaterina"]
[Black "Sargsyan, Anna M."]
[Result "1-0"]
[ECO "D02"]
[WhiteElo "2420"]
[BlackElo "2402"]
[Annotator "NA"]
[PlyCount "85"]
[EventDate "2021.10.27"]
[EventType "swiss"]
[EventCountry "LAT"]
[Tiebreak "Cut1 Buchholz+Sonneborn-Berger (Swiss)"]
[SourceTitle "playchess.com"]
[Source "ChessBase"]
[SourceQuality "1"]
[TimeControl "40/6000+30:20/3000+30:900+30"]

1. d4 {[%emt 0:10:04]} d5 {[%emt 0:10:09]} 2. Nf3 {[%emt 0:00:09]} Nf6 {
[%emt 0:00:12]} 3. g3 {[%emt 0:00:10]} Bf5 {[%emt 0:00:16]} 4. Nh4 {[%emt 0:00:
26]} Bg4 {[%emt 0:07:34]} 5. h3 {[%emt 0:01:22]} Bd7 {[%emt 0:02:30]} 6. Bg2 {
[%emt 0:00:20]} c5 {[%emt 0:00:25]} 7. c3 {[%emt 0:04:43]} Nc6 {[%emt 0:00:31]}
8. dxc5 {[%emt 0:02:00]} e6 {[%emt 0:00:18]} 9. Be3 {[%emt 0:00:56]} Ne5 {
[%emt 0:08:17]} 10. Nd2 {[%emt 0:08:04]} Qc7 {[%emt 0:01:35]} 11. b4 {[%emt 0:
09:54]} b6 {[%emt 0:09:15]} 12. Bf4 {[%emt 0:04:20]} Nh5 {[%emt 0:05:29]} 13.
Bxe5 {[%emt 0:03:22]} Qxe5 {[%emt 0:00:09]} 14. O-O {[%emt 0:01:20]} Nf6 {
[%emt 0:05:34]} 15. cxb6 {[%emt 0:05:55]} axb6 {[%emt 0:06:03]} 16. Nc4 {
[%emt 0:13:55]} Qb8 {[%emt 0:16:53]} 17. Ne3 {[%emt 0:06:35]} b5 {[%emt 0:00:
28]} 18. Nf3 {[%emt 0:02:56]} Bd6 {[%emt 0:00:28]} 19. Nd4 {[%emt 0:02:24]} O-O
{[%emt 0:00:14]} 20. a3 {[%emt 0:03:53]} Rc8 {[%emt 0:01:24]} 21. Qd3 {[%emt 0:
04:56]} Be8 $11 {[%emt 0:04:08]} 22. Rfc1 {[%emt 0:01:25]} Ra7 {[%emt 0:00:47]}
23. Ng4 {[%emt 0:03:03]} Nd7 {[%emt 0:05:58]} 24. Qxb5 {[%emt 0:04:35]} Qa8 {
[%emt 0:00:14]} 25. Qd3 {[%emt 0:01:06]} Rxa3 {[%emt 0:00:22]} 26. Rab1 {
[%emt 0:01:38]} Qb8 {[%emt 0:05:58]} 27. Nb3 {[%emt 0:05:10]} h5 {[%emt 0:02:
05]} 28. Ne3 {[%emt 0:00:04]} Ne5 {[%emt 0:00:22]} 29. Qd2 {[%emt 0:00:59]} Qa7
{[%emt 0:04:48]} 30. Na5 {[%emt 0:01:35]} h4 {[%emt 0:02:27]} 31. g4 {[%emt 0:
01:03]} Ra4 {[%emt 0:02:43]} 32. Ra1 {[%emt 0:03:15]} Rxa1 {[%emt 0:00:45]} 33.
Rxa1 {[%emt 0:00:03]} Ng6 {[%emt 0:00:05]} 34. c4 {[%emt 0:02:51]} Be5 {
[%emt 0:01:09]} 35. Ra2 {[%emt 0:00:22]} d4 {[%emt 0:00:26]} 36. Nc2 {[%emt 0:
00:47]} Nf4 {[%emt 0:01:03]} 37. Ne1 {[%emt 0:00:53]} Nxg2 {[%emt 0:01:25]} 38.
Kxg2 {[%emt 0:00:06]} Bc7 {[%emt 0:01:58]} 39. Nf3 {[%emt 0:00:18]} e5 {
[%emt 0:00:07]} 40. Nc6 {[%emt 0:02:29]} Qb7 {[%emt 0:02:45]} 41. Ne7+ {
[%emt 0:21:32]} Kf8 {[%emt 0:23:54]} 42. Nxc8 {[%emt 0:04:04]} e4 {[%emt 0:00:
06]} 43. Qxd4 {[%emt 0:07:15]} 1-0

[Event "FIDE Womens Grand Swiss 2021"]
[Site "Riga"]
[Date "2021.11.03"]
[Round "7.21"]
[White "Padmini, Rout"]
[Black "Cyfka, Karina"]
[Result "0-1"]
[ECO "D02"]
[WhiteElo "2380"]
[BlackElo "2409"]
[Annotator "NA"]
[PlyCount "86"]
[EventDate "2021.10.27"]
[EventType "swiss"]
[EventCountry "LAT"]
[Tiebreak "Cut1 Buchholz+Sonneborn-Berger (Swiss)"]
[SourceTitle "playchess.com"]
[Source "ChessBase"]
[SourceQuality "1"]
[TimeControl "40/6000+30:20/3000+30:900+30"]

1. Nf3 {[%emt 0:10:12]} d5 {[%emt 0:10:23]} 2. g3 {[%emt 0:00:07]} Nd7 {
[%emt 0:00:31]} 3. d4 {[%emt 0:00:37]} Nb6 {[%emt 0:00:13]} 4. Bg2 {[%emt 0:00:
21]} Bf5 {[%emt 0:00:50]} 5. O-O {[%emt 0:00:32]} e6 {[%emt 0:00:25]} 6. Ne5 {
[%emt 0:02:38]} Nf6 {[%emt 0:05:18]} 7. c4 {[%emt 0:05:24]} c6 {[%emt 0:05:57]}
8. b3 {[%emt 0:02:02]} Be7 {[%emt 0:06:47]} 9. Nc3 {[%emt 0:00:48]} O-O {
[%emt 0:01:56]} 10. Bb2 {[%emt 0:00:54]} h6 {[%emt 0:06:20]} 11. e3 {[%emt 0:
03:15]} Bh7 {[%emt 0:07:32]} 12. Qe2 {[%emt 0:02:24]} Nfd7 {[%emt 0:07:32]} 13.
Rad1 {[%emt 0:08:19]} a5 {[%emt 0:07:11]} 14. f4 {[%emt 0:07:29]} Nxe5 {
[%emt 0:06:28]} 15. dxe5 {[%emt 0:08:39]} Bc5 $11 {[%emt 0:05:13]} 16. Ne4 {
[%emt 0:04:29]} Be7 {[%emt 0:05:43]} 17. g4 {[%emt 0:06:42]} a4 {[%emt 0:06:33]
} 18. f5 {[%emt 0:03:23]} axb3 {[%emt 0:00:12]} 19. axb3 {[%emt 0:01:14]} Ra2 {
[%emt 0:03:20]} 20. Nc3 {[%emt 0:01:30]} Rxb2 {[%emt 0:06:24]} 21. Qxb2 {
[%emt 0:00:02]} Bc5 {[%emt 0:02:19]} 22. cxd5 {[%emt 0:04:13]} Bxe3+ {[%emt 0:
01:47]} 23. Kh1 {[%emt 0:00:06]} cxd5 {[%emt 0:00:22]} 24. fxe6 {[%emt 0:08:24]
} fxe6 {[%emt 0:00:11]} 25. Rxf8+ {[%emt 0:02:34]} Qxf8 {[%emt 0:00:15]} 26.
Nb5 {[%emt 0:00:45]} Qf4 {[%emt 0:02:40]} 27. Nd6 {[%emt 0:17:56]} d4 {[%emt 0:
02:25]} 28. Rf1 {[%emt 0:04:01]} Qxe5 {[%emt 0:00:41]} 29. Nf7 {[%emt 0:00:16]}
Qc7 {[%emt 0:03:33]} 30. Qe2 {[%emt 0:00:38]} Bg6 {[%emt 0:01:07]} 31. Nxh6+ {
[%emt 0:02:58]} gxh6 {[%emt 0:00:27]} 32. Qf3 {[%emt 0:00:13]} Qe7 {[%emt 0:01:
21]} 33. b4 {[%emt 0:00:44]} Nd5 {[%emt 0:01:13]} 34. b5 {[%emt 0:00:16]} Kh7 {
[%emt 0:02:14]} 35. Qg3 {[%emt 0:00:37]} Nf6 {[%emt 0:00:25]} 36. h4 {[%emt 0:
01:36]} Ne4 {[%emt 0:00:43]} 37. Bxe4 {[%emt 0:00:22]} Bxe4+ {[%emt 0:00:01]}
38. Kh2 {[%emt 0:00:01]} e5 {[%emt 0:00:18]} 39. Kh3 {[%emt 0:00:06]} Bf4 {
[%emt 0:00:50]} 40. Qb3 {[%emt 0:00:02]} h5 {[%emt 0:01:09]} 41. Rg1 {[%emt 0:
53:14]} Qc7 {[%emt 0:22:53]} 42. gxh5 {[%emt 0:00:00]} Qc3+ {[%emt 0:03:56]}
43. Qxc3 {[%emt 0:00:00]} dxc3 {[%emt 0:00:40]} 0-1

[Event "FIDE Womens Grand Swiss 2021"]
[Site "Riga"]
[Date "2021.11.03"]
[Round "7.22"]
[White "Houska, Jovanka"]
[Black "Divya Deshmukh"]
[Result "0-1"]
[ECO "D45"]
[WhiteElo "2381"]
[BlackElo "2305"]
[Annotator "NA"]
[PlyCount "112"]
[EventDate "2021.10.27"]
[EventType "swiss"]
[EventCountry "LAT"]
[Tiebreak "Cut1 Buchholz+Sonneborn-Berger (Swiss)"]
[SourceTitle "playchess.com"]
[Source "ChessBase"]
[SourceQuality "1"]
[TimeControl "40/6000+30:20/3000+30:900+30"]

1. d4 {[%emt 0:10:05]} Nf6 {[%emt 0:10:04]} 2. c4 {[%emt 0:00:04]} e6 {[%emt 0:
00:03]} 3. Nf3 {[%emt 0:00:10]} d5 {[%emt 0:00:04]} 4. Nc3 {[%emt 0:00:04]} c6
{[%emt 0:00:02]} 5. e3 {[%emt 0:00:34]} Nbd7 {[%emt 0:00:05]} 6. Be2 {[%emt 0:
00:08]} dxc4 {[%emt 0:00:10]} 7. a4 {[%emt 0:00:20]} Bd6 {[%emt 0:02:00]} 8.
Nd2 {[%emt 0:00:06]} Bb4 {[%emt 0:17:14]} 9. Nxc4 {[%emt 0:02:58]} Qe7 {
[%emt 0:04:28]} 10. O-O {[%emt 0:03:26]} e5 {[%emt 0:04:39]} 11. Na2 {[%emt 0:
03:51]} Bd6 {[%emt 0:15:13]} 12. Nxd6+ {[%emt 0:04:00]} Qxd6 {[%emt 0:00:01]}
13. b4 {[%emt 0:00:42]} exd4 {[%emt 0:02:56]} 14. Bb2 {[%emt 0:00:26]} a5 {
[%emt 0:12:01]} 15. b5 {[%emt 0:03:57]} O-O {[%emt 0:05:27]} 16. Rc1 $14 {
[%emt 0:12:45]} Qe6 {[%emt 0:14:31]} 17. Bc4 {[%emt 0:03:04]} Qe7 {[%emt 0:00:
08]} 18. Qxd4 {[%emt 0:02:41]} c5 {[%emt 0:00:25]} 19. Qf4 {[%emt 0:05:03]} Nb6
{[%emt 0:03:39]} 20. Bd3 {[%emt 0:04:49]} Be6 {[%emt 0:03:13]} 21. Qh4 {
[%emt 0:05:23]} h6 {[%emt 0:00:59]} 22. Nc3 {[%emt 0:01:58]} Nfd5 {[%emt 0:04:
54]} 23. Qe4 {[%emt 0:20:20]} Nf6 {[%emt 0:00:04]} 24. Qe5 {[%emt 0:01:41]}
Rfd8 {[%emt 0:00:43]} 25. Rfd1 {[%emt 0:00:14]} Nbd7 {[%emt 0:07:25]} 26. Qg3 {
[%emt 0:05:18]} c4 {[%emt 0:00:22]} 27. Bc2 {[%emt 0:02:19]} Nc5 {[%emt 0:01:
19]} 28. e4 {[%emt 0:04:25]} Nh5 {[%emt 0:01:33]} 29. Qe5 {[%emt 0:05:11]} Qg5
{[%emt 0:00:11]} 30. Nd5 {[%emt 0:00:52]} Bxd5 {[%emt 0:00:34]} 31. exd5 {
[%emt 0:07:21]} Nf4 {[%emt 0:00:03]} 32. Qxg5 {[%emt 0:00:49]} hxg5 {[%emt 0:
00:00]} 33. Rd2 {[%emt 0:01:09]} Rxd5 {[%emt 0:00:08]} 34. Rxd5 {[%emt 0:00:04]
} Nxd5 {[%emt 0:00:02]} 35. Bd4 {[%emt 0:00:12]} Nb3 {[%emt 0:02:46]} 36. Rd1 {
[%emt 0:00:48]} Nf4 {[%emt 0:00:28]} 37. Be3 {[%emt 0:00:33]} Ne6 {[%emt 0:00:
33]} 38. Rd7 {[%emt 0:00:34]} Nec5 {[%emt 0:00:22]} 39. Bxc5 {[%emt 0:00:54]}
Nxc5 {[%emt 0:00:01]} 40. Rd4 {[%emt 0:00:10]} Re8 {[%emt 0:00:57]} 41. Kf1 {
[%emt 0:50:01]} Nb3 {[%emt 0:21:56]} 42. Rd7 {[%emt 0:00:00]} b6 {[%emt 0:06:
39]} 43. Rd6 {[%emt 0:00:00]} Kf8 {[%emt 0:04:10]} 44. f4 {[%emt 0:00:00]} gxf4
{[%emt 0:00:30]} 45. Rxb6 {[%emt 0:00:00]} Nd4 {[%emt 0:00:55]} 46. Bd1 {
[%emt 0:00:00]} c3 {[%emt 0:01:00]} 47. Ra6 {[%emt 0:00:00]} c2 {[%emt 0:03:43]
} 48. Bxc2 {[%emt 0:00:00]} Nxc2 {[%emt 0:00:03]} 49. Rxa5 {[%emt 0:00:00]} Ne1
{[%emt 0:05:17]} 50. h4 {[%emt 0:00:00]} Nd3 {[%emt 0:01:04]} 51. Kg1 {[%emt 0:
00:00]} Re1+ {[%emt 0:01:20]} 52. Kh2 {[%emt 0:00:00]} Ne5 {[%emt 0:02:05]} 53.
g4 {[%emt 0:00:00]} f3 {[%emt 0:01:09]} 54. b6 {[%emt 0:00:00]} f2 {[%emt 0:00:
20]} 55. b7 {[%emt 0:00:00]} Nxg4+ {[%emt 0:00:09]} 56. Kg3 {[%emt 0:00:00]}
Rg1+ {[%emt 0:00:03]} 0-1

[Event "FIDE Womens Grand Swiss 2021"]
[Site "Riga"]
[Date "2021.11.03"]
[Round "7.23"]
[White "Kamalidenova, Meruert"]
[Black "Eizaguerri Floris, Maria"]
[Result "1-0"]
[ECO "B80"]
[WhiteElo "2339"]
[BlackElo "2328"]
[Annotator "NA"]
[PlyCount "107"]
[EventDate "2021.10.27"]
[EventType "swiss"]
[EventCountry "LAT"]
[Tiebreak "Cut1 Buchholz+Sonneborn-Berger (Swiss)"]
[SourceTitle "playchess.com"]
[Source "ChessBase"]
[SourceQuality "1"]
[TimeControl "40/6000+30:20/3000+30:900+30"]

1. e4 {[%emt 0:10:21]} c5 {[%emt 0:10:07]} 2. Nf3 {[%emt 0:00:06]} e6 {[%emt 0:
00:04]} 3. d4 {[%emt 0:00:07]} cxd4 {[%emt 0:00:05]} 4. Nxd4 {[%emt 0:00:10]}
Nc6 {[%emt 0:00:03]} 5. Nc3 {[%emt 0:00:21]} a6 {[%emt 0:00:06]} 6. g4 {
[%emt 0:00:52]} Qc7 {[%emt 0:02:40]} 7. Be3 {[%emt 0:01:07]} d6 {[%emt 0:03:03]
} 8. Qd2 {[%emt 0:03:52]} Nf6 {[%emt 0:01:45]} 9. f3 {[%emt 0:03:02]} Be7 {
[%emt 0:01:21]} 10. O-O-O {[%emt 0:02:22]} Nd7 {[%emt 0:16:23]} 11. f4 {
[%emt 0:06:53]} O-O {[%emt 0:08:36]} 12. g5 {[%emt 0:05:54]} b5 {[%emt 0:01:08]
} 13. Nxc6 {[%emt 0:04:10]} Qxc6 {[%emt 0:00:06]} 14. Bg2 {[%emt 0:01:10]} Bb7
{[%emt 0:05:26]} 15. Rhg1 {[%emt 0:01:52]} b4 {[%emt 0:07:56]} 16. Ne2 {
[%emt 0:01:29]} Rfc8 {[%emt 0:03:03]} 17. Kb1 {[%emt 0:04:03]} Nc5 $11 {
[%emt 0:08:35]} 18. Bxc5 {[%emt 0:05:54]} Qxc5 {[%emt 0:03:49]} 19. Nd4 {
[%emt 0:02:23]} a5 {[%emt 0:04:30]} 20. f5 {[%emt 0:02:47]} e5 {[%emt 0:10:55]}
21. Nb3 {[%emt 0:02:27]} Qc4 {[%emt 0:01:43]} 22. f6 {[%emt 0:04:49]} Bf8 {
[%emt 0:00:06]} 23. fxg7 {[%emt 0:03:10]} Bxg7 {[%emt 0:01:41]} 24. Qd3 {
[%emt 0:04:38]} Qc6 {[%emt 0:07:07]} 25. Bh3 {[%emt 0:03:48]} Ba6 {[%emt 0:02:
56]} 26. Qd2 {[%emt 0:03:09]} Rc7 {[%emt 0:04:35]} 27. Bf5 {[%emt 0:04:58]} a4
{[%emt 0:01:09]} 28. Nc1 {[%emt 0:00:52]} b3 {[%emt 0:03:01]} 29. cxb3 {
[%emt 0:04:46]} axb3 {[%emt 0:00:03]} 30. Nxb3 {[%emt 0:00:54]} Bc4 {[%emt 0:
01:52]} 31. Nc1 {[%emt 0:02:30]} Rca7 {[%emt 0:01:13]} 32. b3 {[%emt 0:03:25]}
Qb5 {[%emt 0:00:36]} 33. Qb2 {[%emt 0:02:19]} Be6 {[%emt 0:00:40]} 34. Bxe6
fxe6 {[%emt 0:00:01]} 35. Rxd6 {[%emt 0:03:49]} Bf8 {[%emt 0:00:29]} 36. Rxe6 {
[%emt 0:02:13]} Ba3 {[%emt 0:00:20]} 37. Qxe5 {[%emt 0:01:47]} Qxe5 {[%emt 0:
00:25]} 38. Rxe5 {[%emt 0:00:05]} Bxc1 {[%emt 0:00:06]} 39. Rxc1 {[%emt 0:00:
18]} Rxa2 {[%emt 0:00:04]} 40. Rc8+ {[%emt 0:00:23]} Rxc8 {[%emt 0:00:07]} 41.
Kxa2 {[%emt 0:50:03]} Rc2+ {[%emt 0:50:18]} 42. Ka3 {[%emt 0:00:06]} Rxh2 {
[%emt 0:00:03]} 43. b4 {[%emt 0:00:28]} Kf7 {[%emt 0:00:28]} 44. b5 {[%emt 0:
00:30]} Rh1 {[%emt 0:00:03]} 45. Kb4 {[%emt 0:00:16]} Rb1+ {[%emt 0:00:16]} 46.
Kc5 {[%emt 0:00:05]} Rc1+ {[%emt 0:00:17]} 47. Kd6 {[%emt 0:00:11]} Rd1+ {
[%emt 0:00:07]} 48. Kc6 {[%emt 0:00:07]} Rc1+ {[%emt 0:00:10]} 49. Rc5 {
[%emt 0:00:08]} Re1 {[%emt 0:00:30]} 50. b6 {[%emt 0:00:08]} Rxe4 {[%emt 0:00:
03]} 51. b7 {[%emt 0:00:09]} Re8 {[%emt 0:00:56]} 52. Kc7 {[%emt 0:00:11]} Re7+
{[%emt 0:00:07]} 53. Kb6 {[%emt 0:00:05]} Re6+ {[%emt 0:00:08]} 54. Rc6 {
[%emt 0:00:23]} 1-0

[Event "FIDE Womens Grand Swiss 2021"]
[Site "Riga"]
[Date "2021.11.03"]
[Round "7.24"]
[White "Danielian, Elina"]
[Black "Golsta, Madara"]
[Result "1-0"]
[ECO "A49"]
[WhiteElo "2450"]
[BlackElo "2003"]
[Annotator "ChessBase"]
[PlyCount "125"]
[EventDate "2021.10.27"]
[EventType "swiss"]
[EventCountry "LAT"]
[Tiebreak "Cut1 Buchholz+Sonneborn-Berger (Swiss)"]
[SourceTitle "playchess.com"]
[Source "ChessBase"]
[SourceQuality "1"]
[TimeControl "40/6000+30:20/3000+30:900+30"]

1. Nf3 {[%emt 0:10:30]} Nf6 {[%emt 0:10:30]} 2. c4 {[%emt 0:00:06]} g6 {
[%emt 0:01:02]} 3. g3 {[%emt 0:00:33]} Bg7 {[%emt 0:00:18]} 4. Bg2 {[%emt 0:00:
05]} O-O {[%emt 0:00:37]} 5. O-O {[%emt 0:00:05]} c5 {[%emt 0:00:42]} 6. d4 {
[%emt 0:00:50]} cxd4 {[%emt 0:00:17]} 7. Qxd4 {[%emt 0:00:41]} Nc6 {[%emt 0:00:
39]} 8. Qh4 {[%emt 0:00:33]} Qa5 {[%emt 0:00:38]} 9. Nc3 {[%emt 0:00:23]} d6 {
[%emt 0:00:32]} 10. Rd1 {[%emt 0:02:52]} Qh5 {[%emt 0:03:52]} 11. Qxh5 {
[%emt 0:00:13]} Nxh5 {[%emt 0:00:24]} 12. Nd5 {[%emt 0:05:48]} h6 {[%emt 0:08:
52]} 13. h3 {[%emt 0:01:54]} Kh7 {[%emt 0:02:07]} 14. g4 {[%emt 0:04:05]} Nf6 {
[%emt 0:03:30]} 15. Rb1 {[%emt 0:14:16]} Be6 {[%emt 0:05:33]} 16. g5 {[%emt 0:
05:21]} Ne4 {[%emt 0:04:55]} 17. gxh6 {[%emt 0:01:38]} Bxh6 {[%emt 0:00:50]}
18. Bxh6 {[%emt 0:00:15]} Kxh6 {[%emt 0:00:09]} 19. Nd4 {[%emt 0:01:23]} Bxd5 {
[%emt 0:02:50]} 20. cxd5 {[%emt 0:00:05]} Nxd4 {[%emt 0:00:19]} 21. Rxd4 {
[%emt 0:00:04]} Nf6 {[%emt 0:00:24]} 22. Rc1 {[%emt 0:06:12]} Rac8 {[%emt 0:02:
48]} 23. Rdc4 {[%emt 0:00:15]} Rxc4 {[%emt 0:00:53]} 24. Rxc4 {[%emt 0:00:06]}
Rd8 {[%emt 0:00:09]} 25. h4 {[%emt 0:01:38]} b5 {[%emt 0:07:26]} 26. Rc7 {
[%emt 0:02:40]} Rd7 {[%emt 0:00:31]} 27. Rc8 {[%emt 0:00:03]} Rb7 {[%emt 0:02:
48]} 28. e4 {[%emt 0:08:25]} Nd7 {[%emt 0:01:15]} 29. Kh2 {[%emt 0:09:41]} Nc5
{[%emt 0:07:04]} 30. e5 {[%emt 0:05:28]} Nd3 {[%emt 0:00:26]} 31. e6 {[%emt 0:
07:36]} Kg7 {[%emt 0:02:21]} 32. Rd8 {[%emt 0:10:13]} fxe6 {[%emt 0:01:05]} 33.
dxe6 {[%emt 0:00:01]} Rb6 {[%emt 0:00:20]} 34. Re8 {[%emt 0:02:39]} Kf6 {
[%emt 0:00:27]} 35. Bh3 {[%emt 0:00:01]} Nf4 {[%emt 0:04:45]} 36. Rf8+ {
[%emt 0:00:05]} Ke5 {[%emt 0:00:16]} 37. Bg4 {[%emt 0:00:09]} Nxe6 {[%emt 0:01:
20]} 38. Rf7 {[%emt 0:00:06]} Rb7 {[%emt 0:00:31]} 39. Kg3 {[%emt 0:00:04]} d5
{[%emt 0:02:19]} 40. f4+ {[%emt 0:00:03]} Kd6 {[%emt 0:00:22]} 41. Rh7 {
[%emt 0:50:03]} Nxf4 {[%emt 0:51:22]} 42. Rf7 {[%emt 0:01:27]} Nd3 {[%emt 0:01:
23]} 43. Rg7 {[%emt 0:00:48]} Ne5 {[%emt 0:00:34]} 44. Be2 {[%emt 0:00:02]} Ke6
{[%emt 0:01:50]} 45. Kf4 {[%emt 0:00:03]} Kf6 {[%emt 0:00:30]} 46. Rg8 {
[%emt 0:00:02]} Nd7 {[%emt 0:03:07]} 47. Rc8 {[%emt 0:00:15]} e5+ {[%emt 0:06:
00]} 48. Ke3 {[%emt 0:00:23]} Kf5 {[%emt 0:01:00]} 49. Bd3+ {[%emt 0:01:14]} e4
{[%emt 0:00:30]} 50. Bf1 {[%emt 0:01:32]} Kg4 {[%emt 0:03:13]} 51. Rh8 {
[%emt 0:04:21]} Nf6 {[%emt 0:02:00]} 52. Be2+ {[%emt 0:03:17]} Kf5 {[%emt 0:00:
40]} 53. Kd4 {[%emt 0:00:05]} Rc7 {[%emt 0:01:26]} 54. Bxb5 {[%emt 0:01:49]}
Rc2 {[%emt 0:00:22]} 55. Rf8 {[%emt 0:00:06]} Rd2+ {[%emt 0:01:16]} 56. Kc3 {
[%emt 0:00:04]} e3 {[%emt 0:01:29]} 57. Rf7 {[%emt 0:05:52]} d4+ {[%emt 0:07:
42]} 58. Kb3 {[%emt 0:00:07]} d3 {[%emt 0:01:25]} 59. Kc3 {[%emt 0:00:51]} Rc2+
{[%emt 0:00:00]} 60. Kxd3 {[%emt 0:00:00]} e2 {[%emt 0:00:00]} 61. Bd7+ {
[%emt 0:02:06]} Ke5 {[%emt 0:00:00]} 62. Kxc2 {[%emt 0:00:13]} Nxd7 {[%emt 0:
03:13]} 63. Kd2 {[%emt 0:02:10]} 1-0